bitfinex-derivatives/quotes_ETHF0:USTF0_20251031
["timestamp","ask_amount","ask_price","bid_price","bid_amount"]
[1761940792594,3.2078,3889.6,3888.6,1.46107]
[1761940792789,3.67083,3889.6,3889.1,0.46308]
[1761940792984,3.2078,3889.6,3888.7,1.15784]
[1761940793189,3.2078,3889.6,3888.8,1.15782]
[1761940793392,3.2078,3889.6,3889.4,0.46305]
[1761940793592,3.2078,3889.6,3888.8,1.15782]
[1761940793794,0.46305,3889.5,3888.9,0.46311]
[1761940793988,0.46305,3889.5,3889.0,0.4631]
[1761940794189,3.2078,3889.2,3888.7,0.90020075]
[1761940794394,0.5073,3889.1,3888.6,0.3032]
[1761940794595,0.5073,3889.1,3888.9,0.46311]
[1761940795305,3.5212,3889.2,3888.4,0.90255216]
[1761940795306,0.3134,3888.6,3888.4,0.90255216]
[1761940795602,0.3155722,3888.6,3887.7,3.2078]
[1761940795795,0.0021722,3888.6,3888.5,0.5084]
[1761940795989,0.0021722,3888.6,3888.0,0.3032]
[1761940796196,0.3155722,3888.6,3888.0,0.3032]
[1761940796399,0.46318,3888.4,3887.5,3.2078]
[1761940796594,0.97051,3888.1,3888.0,0.00259657]
[1761940796789,0.5073,3888.1,3888.0,0.00259657]
[1761940797898,3.2078,3888.4,3887.4,3.2078]
[1761940798099,0.5073,3887.1,3886.9,0.46335]
[1761940798303,0.3134,3887.4,3886.9,0.46335]
[1761940798495,3.2078,3887.5,3886.8,0.3032]
[1761940798896,3.2078,3887.5,3887.1,0.46332]
[1761940799096,3.2078,3887.5,3886.8,0.3032]
[1761940799404,3.2078,3887.5,3886.8,0.30541667]
[1761940799603,3.2078,3887.5,3887.3,0.4633]
[1761940799896,3.2078,3887.5,3886.8,0.30541667]
[1761940800097,3.2078,3887.5,3887.0,0.46333]
[1761940800297,0.3134,3888.0,3886.8,1.667e-05]
[1761940800298,0.5073,3886.9,3886.8,1.667e-05]
[1761940800498,0.3134,3886.8,3885.1,3.2078]
[1761940800701,3.2078,3886.6,3885.1,3.2078]
[1761940800896,3.5212,3886.2,3885.5,3.2078]
[1761940801100,3.5212,3886.2,3885.1,3.2078]
[1761940801405,0.46346,3886.1,3885.3,0.46353]
[1761940801604,3.98464,3886.2,3885.1,3.21110252]
[1761940801808,3.5212,3886.2,3885.1,3.21110252]
[1761940802101,0.5073,3885.2,3885.1,3.21110252]
[1761940802403,0.00231488,3885.2,3885.1,3.21110252]
[1761940802709,0.00231488,3885.2,3885.1,0.51170252]
[1761940803305,3.5212,3886.2,3885.9,0.46347]
[1761940803501,3.5212,3886.2,3885.4,3.2078]
[1761940803696,3.5212,3886.2,3885.9,0.46347]
[1761940804107,3.5212,3886.2,3886.0,0.46345]
[1761940804404,3.52353222,3886.2,3885.8,0.46348]
[1761940804602,3.52353222,3886.2,3885.4,3.2078]
[1761940804809,3.52353222,3886.2,3886.0,0.46346]
[1761940804999,0.5073,3886.1,3886.0,0.46346]
[1761940805198,0.5073,3886.1,3885.7,0.4635]
[1761940805703,0.5073,3886.1,3885.4,3.2078]
[1761940805904,0.5073,3886.1,3885.9,0.46347]
[1761940806203,0.5073,3886.1,3885.4,3.2078]
[1761940806506,3.52353222,3886.2,3885.4,3.2078]
[1761940806507,0.5073,3885.5,3885.4,3.2078]
[1761940807605,3.52353222,3886.2,3885.8,0.46348]
[1761940807806,0.31573222,3886.2,3885.4,4.36662]
[1761940808000,3.2078,3886.1,3885.1,0.00330252]
[1761940808303,0.5073,3885.3,3885.2,0.46356]
[1761940808500,0.5073,3885.3,3885.1,0.00330252]
[1761940808501,0.5073,3885.3,3885.1,0.46686252]
[1761940808699,0.5073,3885.2,3885.1,0.00330252]
[1761940809303,0.5073,3886.1,3886.0,0.46346]
[1761940809502,0.3134,3885.6,3885.1,0.02005649]
[1761940809701,0.5073,3885.4,3885.3,0.46354]
[1761940810107,0.5073,3885.4,3885.2,0.46356]
[1761940810297,0.5073,3885.4,3885.3,0.01675397]
[1761940810802,0.5073,3885.4,3885.3,0.03341558]
[1761940812405,0.5073,3885.4,3884.2,3.62787559]
[1761940812406,0.479,3884.3,3884.2,0.42007559]
[1761940812805,3.6868,3884.3,3884.2,0.42007559]
[1761940813102,3.2078,3884.7,3884.3,0.46366]
[1761940813302,0.479,3884.4,3884.3,0.00223513]
[1761940813501,0.7717,3884.4,3884.3,0.00223513]
[1761940816214,3.2078,3884.7,3884.3,0.00223513]
[1761940816413,0.479,3884.5,3884.4,0.46365]
[1761940817313,0.479,3884.5,3884.3,0.00223513]
[1761940817508,1.23535,3884.4,3884.3,0.00223513]
[1761940817710,1.23535,3884.4,3884.3,3.513e-05]
[1761940817910,1.23535,3884.4,3884.2,0.42007559]
[1761940817911,0.479,3884.3,3884.2,0.42007559]
[1761940818106,0.479,3884.3,3883.0,3.2078]
[1761940818107,0.479,3883.4,3883.0,3.2078]
[1761940818307,3.2078,3883.8,3883.1,0.46381]
[1761940818512,3.2078,3883.8,3883.3,0.46378]
[1761940818716,0.4878,3883.7,3883.6,0.46375]
[1761940818904,0.46368,3884.2,3883.2,0.3052]
[1761940819105,3.2078,3884.3,3883.4,1.15944]
[1761940819309,3.2078,3884.8,3884.3,0.46366]
[1761940819618,3.21054476,3884.8,3884.3,0.46366]
[1761940819916,3.21054476,3884.8,3884.4,0.46365]
[1761940820713,3.21054476,3884.8,3883.8,0.3052]
[1761940820913,3.21054476,3884.8,3884.6,0.46362]
[1761940821113,3.21054476,3884.8,3884.4,0.3052]
[1761940821314,3.21054476,3884.8,3884.5,0.46364]
[1761940821618,3.21054476,3884.8,3884.4,0.3052]
[1761940821817,3.21054476,3884.8,3884.6,0.46362]
[1761940822010,0.00274476,3884.8,3884.4,0.76885]
[1761940822206,0.00274476,3884.8,3884.5,0.46364]
[1761940822409,3.2078,3884.7,3884.4,0.76885]
[1761940822616,3.2078,3884.7,3884.5,0.46364]
[1761940822817,3.2078,3884.7,3884.4,0.76884]
[1761940823121,3.2078,3884.7,3884.5,0.46364]
[1761940824116,0.08052512,3884.6,3884.4,0.3052]
[1761940824321,0.4878,3884.1,3883.8,0.3052]
[1761940824530,0.00274476,3884.8,3883.9,4.36709]
[1761940824721,0.00274476,3884.8,3884.6,0.93502]
[1761940825018,0.56831954,3884.7,3884.6,0.46362]
[1761940826014,0.08051954,3884.7,3884.6,0.46362]
[1761940826610,0.08051954,3884.7,3884.6,0.93502]
[1761940826811,0.08051954,3884.7,3884.6,4.14282]
[1761940827917,0.08051954,3884.7,3884.6,0.93502]
[1761940829016,0.08051954,3884.7,3884.6,4.14282]
[1761940830622,0.08051954,3884.7,3884.6,2.29240428]
[1761940830824,0.08051954,3884.7,3884.5,1.35738428]
[1761940831016,0.00274476,3884.8,3884.7,0.93502]
[1761940831327,0.0832578,3884.8,3884.5,1.35738428]
[1761940831528,0.4878,3884.6,3884.5,0.90537991]
[1761940831725,0.56831304,3884.6,3884.5,0.90537991]
[1761940832025,0.56831304,3884.6,3884.4,0.90537991]
[1761940832219,0.46362,3884.7,3884.4,0.90537991]
[1761940832220,0.08051304,3884.5,3884.4,0.90537991]
[1761940832420,0.56831304,3884.5,3884.3,1.36903991]
[1761940832621,0.08051304,3884.4,3884.3,1.36903991]
[1761940832923,1.03196304,3884.4,3884.2,1.3254555]
[1761940833119,3.77611304,3884.3,3884.2,0.42007559]
[1761940833326,3.77613244,3884.3,3884.2,0.42007559]
[1761940833926,0.08053244,3884.3,3884.2,1.35515559]
[1761940834124,0.08053244,3884.3,3884.2,2.2605355]
[1761940835220,0.08053244,3884.3,3884.2,1.35515559]
[1761940835425,0.08053244,3884.3,3884.2,4.56295559]
[1761940835931,0.08053244,3884.3,3884.2,1.35515559]
[1761940836325,0.08053244,3884.3,3884.2,5.92033987]
[1761940836629,0.08053244,3884.3,3884.2,1.35515559]
[1761940837028,0.08053244,3884.3,3884.2,5.92033987]
[1761940837429,0.08053244,3884.3,3884.2,4.56295559]
[1761940838419,0.00274476,3884.8,3884.7,0.93502]
[1761940838827,0.00274476,3884.8,3884.7,2.29440136]
[1761940839018,3.2078,3886.3,3885.8,0.4714]
[1761940839225,3.2078,3886.3,3886.2,0.4714]
[1761940839430,3.2078,3886.3,3886.2,1.6143901]
[1761940840131,3.21021907,3886.3,3886.2,0.93744231]
[1761940840328,3.21021907,3886.3,3886.2,0.68101667]
[1761940840519,3.21021907,3886.3,3886.2,0.00260231]
[1761940840725,3.69401907,3886.3,3886.2,0.00260231]
[1761940844021,3.69401907,3886.3,3886.2,2.31e-06]
[1761940844226,0.4838,3885.0,3884.9,0.67841436]
[1761940844430,0.4838,3885.0,3884.8,1.14201436]
[1761940844630,0.4838,3885.0,3884.8,0.67841436]
[1761940844835,0.4838,3885.0,3884.6,0.9060668]
[1761940844836,0.4838,3885.0,3884.7,0.67841436]
[1761940845134,0.4838,3885.0,3884.8,0.67841436]
[1761940845745,0.4838,3885.0,3884.8,1.14201436]
[1761940846136,0.4838,3885.0,3884.8,0.67841436]
[1761940846434,0.4838,3885.0,3884.8,0.4636]
[1761940846637,0.4838,3885.0,3884.8,0.67841436]
[1761940846839,0.4838,3884.8,3884.7,0.68115252]
[1761940847032,0.4838,3884.8,3884.7,0.00273816]
[1761940847537,1.30501,3885.6,3884.7,0.00273816]
[1761940847730,1.82716425,3888.4,3887.5,0.2849]
[1761940847929,0.2828,3889.5,3888.1,0.9060668]
[1761940848141,0.2828,3889.5,3888.7,0.67686998]
[1761940848436,0.2828,3889.5,3888.4,0.67686998]
[1761940848437,0.4838,3888.9,3888.4,0.67686998]
[1761940848638,0.4838,3888.4,3888.1,1.3692768]
[1761940848943,0.4838,3888.4,3888.3,3.2078]
[1761940849141,0.4838,3888.4,3888.3,3.8892372]
[1761940849331,0.4838,3888.4,3888.3,4.56366083]
[1761940849526,0.48563651,3888.4,3888.3,1.35586083]
[1761940849837,8.48563651,3888.4,3888.3,0.6814372]
[1761940850032,0.48563651,3888.4,3888.3,0.6814372]
[1761940851541,3.2078,3889.0,3888.3,0.6814372]
[1761940851740,0.0804469,3888.9,3888.4,0.6814372]
[1761940851939,0.0804469,3888.8,3888.5,0.6814372]
[1761940852136,3.4906,3889.5,3888.6,0.6814372]
[1761940852335,0.080444,3889.4,3888.5,0.46316]
[1761940852637,0.080444,3889.3,3888.5,0.46316]
[1761940852833,3.2078,3889.1,3888.7,0.46313]
[1761940853034,0.4838,3888.8,3888.7,0.46313]
[1761940854035,0.00235825,3889.4,3889.2,0.74797]
[1761940854740,0.00235825,3889.4,3889.3,0.68876135]
[1761940854944,3.2078,3890.4,3889.3,0.68876135]
[1761940855133,0.4838,3889.8,3889.7,0.46302]
[1761940855436,0.0818,3889.8,3889.1,3.67089]
[1761940855634,3.2078,3890.0,3889.2,0.97301859]
[1761940855832,3.2078,3890.4,3889.3,0.68811859]
[1761940856040,3.2078,3890.4,3889.5,0.46303]
[1761940856342,3.21000836,3890.4,3889.5,0.46303]
[1761940856636,3.21000836,3890.4,3890.1,0.46297]
[1761940857044,0.4838,3890.2,3889.9,0.46299]
[1761940857234,0.4838,3890.2,3889.7,0.46301]
[1761940857435,0.4838,3890.2,3890.0,0.46297]
[1761940857629,0.00220836,3890.4,3890.1,0.46297]
[1761940858435,3.2078,3891.6,3890.4,0.2849]
[1761940858742,3.2078,3892.0,3890.8,3.2078]
[1761940858930,3.2078,3892.0,3891.6,0.46278]
[1761940859132,3.2078,3892.0,3891.2,3.2078]
[1761940859332,3.2078,3892.5,3891.2,3.2078]
[1761940859532,3.20991322,3892.5,3891.7,0.46278]
[1761940859942,3.2078,3892.4,3891.2,0.00273759]
[1761940860138,0.4838,3891.8,3891.3,3.2078]
[1761940860438,0.00211322,3892.5,3891.2,0.00273759]
[1761940860439,0.4838,3891.3,3891.2,0.00273759]
[1761940860640,0.4838,3891.3,3890.3,3.67074]
[1761940860842,3.2078,3891.0,3890.3,3.67075]
[1761940861543,3.2078,3891.0,3890.3,3.21066322]
[1761940862732,0.4838,3890.4,3890.3,0.00286322]
[1761940863335,8.4838,3890.4,3890.3,0.00286322]
[1761940865136,8.4838,3890.4,3889.4,3.2078]
[1761940865137,0.4838,3889.5,3889.4,3.2078]
[1761940865339,8.0,3890.4,3888.2,0.67442363]
[1761940865340,0.4838,3889.0,3888.2,0.67442363]
[1761940865539,0.4838,3889.0,3888.3,4.35656065]
[1761940865739,0.4838,3889.0,3888.3,3.2078]
[1761940866240,0.48671387,3889.0,3888.4,0.46318]
[1761940866745,0.48671387,3889.0,3888.5,0.74805]
[1761940866940,0.48671387,3889.0,3888.5,0.2849]
[1761940867446,0.48671387,3889.0,3888.7,0.46314]
[1761940867945,0.00291387,3889.0,3888.6,0.46315]
[1761940868242,0.00291387,3889.0,3888.8,0.46312]
[1761940869351,0.00291387,3889.0,3888.9,0.4441]
[1761940869640,0.28,3890.6,3889.2,0.2849]
[1761940869641,3.2078,3890.1,3889.2,0.2849]
[1761940869840,3.2078,3890.1,3889.3,0.68732045]
[1761940870046,3.2078,3890.1,3889.5,0.46304]
[1761940870245,0.08042335,3890.0,3889.2,3.4927]
[1761940870441,3.2078,3889.7,3889.3,0.68720836]
[1761940870645,3.2078,3889.7,3889.1,0.46309]
[1761940870842,3.2078,3889.7,3889.2,1.15037063]
[1761940871040,3.2078,3889.7,3889.2,0.46307]
[1761940871246,3.21003594,3889.7,3889.3,0.68776309]
[1761940871447,0.8539,3889.4,3888.7,3.2078]
[1761940871641,3.21003594,3889.7,3888.7,3.2078]
[1761940871642,0.8539,3888.9,3888.8,0.68824203]
[1761940871846,0.8539,3888.9,3888.7,3.67094]
[1761940872749,0.8539,3888.9,3888.3,0.00188112]
[1761940872750,0.2828,3888.6,3888.3,0.00188112]
[1761940872949,0.08044538,3888.5,3888.4,0.9236]
[1761940873151,0.20404364,3889.0,3888.4,0.9236]
[1761940873451,0.08044826,3888.9,3888.4,1.38677]
[1761940873749,0.08044826,3888.8,3888.5,0.46316]
[1761940873945,0.08044826,3888.7,3888.3,0.00188112]
[1761940874151,0.08044725,3888.6,3888.3,0.00188112]
[1761940874352,3.5403,3889.2,3888.3,0.00188112]
[1761940874653,0.08044725,3889.1,3888.5,0.46316]
[1761940874848,0.08044725,3889.0,3888.5,0.46316]
[1761940875044,0.08044725,3888.9,3888.5,0.46316]
[1761940875244,3.5403,3889.2,3888.4,0.46317]
[1761940875245,3.28824725,3888.8,3888.4,0.46317]
[1761940875544,0.08044725,3888.7,3888.3,0.46506112]
[1761940876155,0.08044725,3888.7,3888.4,0.46317]
[1761940876353,0.08044725,3888.7,3888.5,0.6919823]
[1761940876549,0.08044725,3888.7,3888.6,0.69208978]
[1761940877353,0.08044725,3888.7,3888.6,1.15522978]
[1761940879453,0.08044725,3888.7,3888.6,2.58022978]
[1761940882158,3.2078,3889.3,3889.2,0.46308]
[1761940882359,0.00223594,3889.7,3889.2,0.46308]
[1761940882360,0.00223594,3889.7,3889.6,1.33953]
[1761940882655,0.00223594,3889.7,3889.6,2.93458468]
[1761940882849,0.00223594,3889.7,3889.6,2.03161978]
[1761940884960,3.2078,3890.5,3890.2,0.46296]
[1761940885158,3.2078,3890.5,3890.3,0.69208978]
[1761940885457,4.0298,3890.5,3890.4,0.69208978]
[1761940886158,4.03256579,3890.5,3890.4,0.69208978]
[1761940886660,4.03256579,3890.5,3890.4,1.15502978]
[1761940886858,4.03256579,3890.5,3890.4,0.69208978]
[1761940888161,4.03256579,3890.5,3890.4,1.15502978]
[1761940888357,4.03256579,3890.5,3890.4,0.69208978]
[1761940890056,0.822,3889.6,3889.5,0.67727373]
[1761940890258,0.822,3889.5,3889.4,1.14032373]
[1761940890459,0.822,3889.5,3889.1,0.90303164]
[1761940890460,0.822,3889.5,3889.3,0.67727373]
[1761940890856,0.822,3889.3,3889.2,0.46308]
[1761940892157,0.822,3889.3,3889.1,0.67727373]
[1761940892359,0.822,3889.0,3888.9,3.88507373]
[1761940892755,0.822,3889.0,3888.9,0.67727373]
[1761940892964,0.822,3888.9,3888.8,0.67727373]
[1761940893161,0.822,3888.8,3888.7,0.67727373]
[1761940893458,0.822,3888.7,3888.6,0.46315]
[1761940893866,0.822,3888.7,3888.5,4.38647373]
[1761940894364,0.90244477,3888.6,3888.5,0.67727373]
[1761940894562,0.90244477,3888.6,3888.3,0.67915485]
[1761940894563,1.0779,3888.5,3888.3,0.67915485]
[1761940894769,0.90244477,3888.4,3888.3,0.00188112]
[1761940895568,0.822,3887.6,3887.5,0.67727373]
[1761940895869,0.822,3887.6,3887.5,0.46328]
[1761940895870,0.08046499,3887.6,3887.5,0.46328]
[1761940896065,3.2078,3888.2,3888.0,0.96462]
[1761940896367,0.08045898,3888.1,3888.0,0.96462]
[1761940896767,0.08344106,3888.1,3888.0,0.96668954]
[1761940897163,0.08344106,3888.1,3888.0,5.05098954]
[1761940897367,0.00298208,3888.1,3888.0,5.73110883]
[1761940897868,3.2078,3889.3,3888.2,1.15799]
[1761940898068,0.822,3888.7,3888.6,0.46315]
[1761940898255,0.90245053,3888.7,3888.4,0.46317]
[1761940898462,0.08045053,3888.6,3888.1,0.68011929]
[1761940898672,0.08045053,3888.5,3888.1,0.68011929]
[1761940898866,0.08044886,3888.4,3888.2,0.46319]
[1761940899073,0.822,3888.1,3888.0,0.68218883]
[1761940899268,0.90245757,3888.1,3888.0,0.00206954]
[1761940900872,3.20984348,3888.5,3888.0,1.84878954]
[1761940901071,3.20984348,3888.5,3888.1,0.67927367]
[1761940901269,0.08045199,3888.4,3888.0,0.97228954]
[1761940901572,3.20984348,3888.5,3888.0,0.97228954]
[1761940901782,0.08045574,3888.4,3888.1,0.46321]
[1761940901968,3.20984348,3888.5,3888.2,0.68883018]
[1761940902170,0.87065396,3888.4,3888.3,0.68883018]
[1761940902371,0.7902,3888.4,3888.3,1.15195526]
[1761940902876,0.7902,3888.4,3888.3,0.68876526]
[1761940903173,0.7902,3888.4,3888.2,0.4632]
[1761940903565,0.7902,3888.3,3888.2,0.4632]
[1761940903765,0.7902,3888.3,3888.2,1.15197528]
[1761940904173,3.20984348,3888.5,3888.4,0.46318]
[1761940904773,0.00204348,3888.5,3888.4,1.26718]
[1761940905072,0.00204348,3888.5,3888.0,0.00206954]
[1761940905270,0.7902,3888.2,3888.1,1.1519417]
[1761940905574,0.7902,3888.2,3888.1,0.46321]
[1761940908966,0.00204348,3888.5,3888.3,0.46318]
[1761940909476,0.79224348,3888.5,3888.4,0.46318]
[1761940909774,0.87269867,3888.5,3888.0,0.50906954]
[1761940909975,0.7902,3888.4,3888.3,0.46318]
[1761940910168,0.00204348,3888.5,3888.4,0.46318]
[1761940910474,0.79224348,3888.5,3888.4,0.46318]
[1761940911070,0.00204348,3888.5,3888.4,0.46318]
[1761940911270,0.00204348,3888.5,3888.4,1.26718]
[1761940912278,0.79224348,3888.5,3888.4,0.46318]
[1761940914482,0.00204348,3888.5,3888.4,0.46318]
[1761940915374,0.87269693,3888.5,3888.4,0.46318]
[1761940917172,0.08249693,3888.5,3888.4,1.26718]
[1761940917968,0.00204348,3888.5,3888.4,5.1635607]
[1761940918378,0.00204348,3888.5,3888.4,1.9557607]
[1761940918772,0.08248909,3888.5,3888.4,1.9557607]
[1761940918973,0.87268909,3888.5,3888.4,0.6885807]
[1761940920380,9.12668909,3888.5,3888.4,0.6885807]
[1761940920678,9.12668909,3888.5,3888.0,0.00206954]
[1761940920679,0.7902,3888.1,3888.0,0.00206954]
[1761940920878,4.07844561,3888.1,3888.0,0.00206954]
[1761940921474,0.4469,3887.4,3887.2,0.67927367]
[1761940921686,0.08044561,3887.3,3887.1,1.14260367]
[1761940921879,0.08044561,3887.2,3887.1,1.94660367]
[1761940922183,0.4448,3887.1,3887.0,1.18067367]
[1761940922385,0.4448,3887.0,3886.9,0.67927367]
[1761940922587,0.52524561,3887.0,3886.9,0.00201426]
[1761940927078,0.52524561,3887.0,3885.7,1.15873]
[1761940927079,0.4448,3885.8,3885.5,0.507]
[1761940927385,0.4448,3885.8,3885.6,0.46351]
[1761940927689,3.2078,3886.5,3886.3,0.46342]
[1761940927985,3.2078,3886.5,3886.3,1.26947222]
[1761940927986,0.08050831,3886.4,3886.3,1.26947222]
[1761940928379,3.2078,3886.5,3886.3,1.26947222]
[1761940929492,3.2078,3887.6,3886.8,0.804]
[1761940929696,0.08048703,3887.5,3887.0,0.507]
[1761940929895,0.08048703,3887.4,3887.0,0.507]
[1761940930094,3.2078,3887.6,3887.2,0.46332]
[1761940930395,0.08047772,3887.5,3887.2,0.46332]
[1761940930595,0.08047772,3887.4,3887.2,0.46332]
[1761940930895,3.2078,3887.6,3887.0,0.507]
[1761940931095,0.08047795,3887.5,3887.1,0.46333]
[1761940931288,0.08047795,3887.4,3887.1,0.46333]
[1761940931488,3.2078,3887.6,3887.0,0.507]
[1761940931689,0.08047786,3887.5,3887.0,0.507]
[1761940931988,3.4422,3887.6,3887.5,0.4629]
[1761940932193,3.52267773,3887.6,3887.5,0.4629]
[1761940933491,0.31487773,3887.6,3887.5,0.4629]
[1761940935093,0.08047773,3887.6,3887.5,0.92618]
[1761940935295,0.08047773,3887.6,3887.5,1.64248]
[1761940935601,3.2078,3888.0,3887.8,0.46324]
[1761940935900,3.2078,3888.0,3887.9,1.17954]
[1761940936102,3.28826518,3888.0,3887.9,0.7163]
[1761940936302,0.08046518,3888.0,3887.9,1.17954]
[1761940936890,3.2078,3888.4,3888.0,0.4629]
[1761940937196,0.00204348,3888.5,3888.3,0.7163]
[1761940937388,0.08045518,3888.4,3888.3,0.7163]
[1761940937586,0.08045518,3888.4,3888.3,1.17949]
[1761940937792,0.08045518,3888.4,3888.3,0.7163]
[1761940938005,0.08045518,3888.4,3888.0,0.92612]
[1761940938006,0.08045518,3888.4,3888.1,0.46321]
[1761940938200,3.20984348,3888.5,3888.1,0.46321]
[1761940938201,0.08045518,3888.3,3888.1,0.46321]
[1761940938401,0.08045518,3888.2,3888.0,0.4629]
[1761940938703,3.20984348,3888.5,3888.0,0.92612]
[1761940938905,0.08045946,3888.4,3888.0,0.92612]
[1761940939104,0.08045946,3888.3,3888.0,0.92612]
[1761940939398,0.08045946,3888.2,3888.0,0.4629]
[1761940939601,0.1782,3887.6,3887.5,0.4629]
[1761940939805,3.2078,3888.1,3887.6,0.46327]
[1761940940003,0.08046807,3888.0,3887.9,0.7624]
[1761940940700,0.08046807,3888.0,3887.9,1.22564]
[1761940942694,0.08046807,3888.0,3887.8,0.46325]
[1761940942894,0.08046807,3887.9,3887.8,1.22565]
[1761940943107,0.08046807,3887.9,3887.8,0.46325]
[1761940943304,0.08046807,3887.9,3887.5,0.4629]
[1761940943506,3.20984348,3888.5,3887.7,0.46325]
[1761940943707,0.08046449,3888.4,3887.7,0.46325]
[1761940943909,0.08046449,3888.3,3887.7,0.46325]
[1761940944201,0.08046449,3888.2,3888.1,1.22561]
[1761940944405,3.20984348,3888.5,3888.3,0.7624]
[1761940944603,0.08045942,3888.4,3888.3,0.7624]
[1761940945199,0.08045942,3888.4,3888.3,1.22559]
[1761940946210,0.00204348,3888.5,3888.4,1.22558]
[1761940947820,0.00204348,3888.5,3888.0,0.4221]
[1761940947821,3.20984348,3888.5,3888.0,0.4221]
[1761940948015,0.1782,3888.1,3888.0,0.4221]
[1761940948215,0.25866229,3888.1,3888.0,0.4221]
[1761940949026,0.25866229,3888.1,3887.6,3.2078]
[1761940949224,0.08046229,3888.0,3887.6,3.2078]
[1761940949525,3.20984348,3888.5,3887.6,3.2078]
[1761940949526,0.08046229,3887.9,3887.6,3.2078]
[1761940949827,3.20984348,3888.5,3887.6,3.2078]
[1761940950027,0.08046452,3888.4,3887.6,3.2078]
[1761940950228,0.08046452,3888.3,3887.6,3.2078]
[1761940950525,0.08046452,3888.2,3887.6,3.2078]
[1761940950726,0.08046452,3888.1,3887.6,3.2078]
[1761940950917,3.20984348,3888.5,3887.5,0.4629]
[1761940950918,0.1782,3887.6,3887.5,0.4629]
[1761940951122,0.08046452,3887.6,3887.5,0.4629]
[1761940951622,0.08046452,3887.8,3887.5,0.4629]
[1761940953522,0.1782,3887.6,3887.5,0.4629]
[1761940953725,0.25866452,3887.6,3887.1,3.2078]
[1761940953922,0.08046452,3887.5,3887.1,3.2078]
[1761940954123,0.08046452,3887.4,3887.1,3.2078]
[1761940954419,0.08046452,3887.3,3887.2,0.7624]
[1761940955924,0.1782,3887.1,3886.5,0.507]
[1761940956130,3.2078,3886.9,3886.5,0.507]
[1761940956331,0.08046452,3886.8,3886.5,0.507]
[1761940956826,0.1782,3886.4,3886.3,0.00205222]
[1761940957035,0.1782,3886.4,3885.0,3.6299]
[1761940957036,0.6831,3885.6,3885.0,3.6299]
[1761940957227,0.08051291,3885.5,3885.0,3.6299]
[1761940957422,0.08051291,3885.4,3885.0,0.4221]
[1761940958129,0.08351611,3885.4,3885.0,0.42520088]
[1761940958327,0.08051291,3885.3,3885.0,0.42520088]
[1761940959631,0.0030032,3885.4,3885.3,0.7624]
[1761940959828,0.08352344,3885.4,3885.3,0.7624]
[1761940960026,0.08352344,3885.4,3885.0,0.42520088]
[1761940960232,0.08052338,3885.3,3885.2,0.7624]
[1761940960424,0.0030032,3885.4,3885.2,0.7624]
[1761940960625,0.0030032,3885.4,3885.3,0.6559]
[1761940962734,0.0030032,3885.4,3885.0,0.42520088]
[1761940963138,0.0030032,3885.4,3885.0,0.88878088]
[1761940963429,0.0030032,3885.4,3885.3,0.6559]
[1761940964231,3.2078,3885.9,3885.8,0.6559]
[1761940964735,0.2525,3887.0,3886.0,0.4251]
[1761940964931,3.2078,3886.1,3886.0,1.081]
[1761940965136,8.14804358,3887.3,3886.5,1.081]
[1761940965137,3.2078,3886.6,3886.5,1.081]
[1761940965329,3.28830287,3886.6,3886.5,1.081]
[1761940965632,3.29022158,3886.6,3886.5,1.081]
[1761940967736,3.29022158,3886.6,3886.5,0.4251]
[1761940968036,3.83472158,3886.6,3886.0,0.4251]
[1761940968338,0.5445,3886.1,3886.0,0.4251]
[1761940968632,3.2078,3886.2,3886.0,0.4251]
[1761940968633,3.2078,3886.2,3886.1,0.6559]
[1761940968836,3.20971871,3886.6,3886.5,0.4251]
[1761940969035,3.29022677,3886.6,3886.5,0.4251]
[1761940969237,3.83472677,3886.6,3886.5,0.4251]
[1761940970335,3.29022677,3886.6,3886.5,0.4251]
[1761940970537,3.29022677,3886.6,3886.5,1.081]
[1761940971235,3.29022677,3886.6,3886.5,0.4251]
[1761940972240,3.29022677,3886.6,3886.5,1.081]
[1761940973036,3.20971871,3886.6,3886.5,1.081]
[1761940974142,3.20971871,3886.6,3886.5,0.4251]
[1761940974539,3.83471626,3886.6,3886.5,0.4251]
[1761940975846,3.29021626,3886.6,3886.5,0.4251]
[1761940976040,3.83471626,3886.6,3886.5,0.4251]
[1761940976345,3.83471626,3886.6,3886.0,0.4251]
[1761940976546,0.08049755,3886.5,3886.0,0.4251]
[1761940977548,3.75421871,3886.6,3886.5,0.4251]
[1761940977850,3.83471679,3886.6,3886.5,0.4251]
[1761940978549,3.29021679,3886.6,3886.5,0.4251]
[1761940980351,3.83471679,3886.6,3886.5,0.4251]
[1761940980841,0.5445,3886.1,3886.0,0.4251]
[1761940981046,0.62499808,3886.1,3886.0,0.4251]
[1761940981448,3.83279808,3886.1,3885.5,3.6329]
[1761940981642,0.08049808,3886.0,3885.5,3.6329]
[1761940981849,0.08049808,3886.0,3885.5,0.4251]
[1761940982048,0.5445,3885.6,3885.5,0.4251]
[1761940982250,0.62499808,3885.6,3885.5,0.4251]
[1761940982656,0.62499808,3885.6,3885.0,3.63300088]
[1761940982851,0.08049808,3885.5,3885.0,3.63300088]
[1761940983053,0.08049808,3885.4,3885.0,3.63300088]
[1761940983352,0.08049808,3885.3,3885.2,0.6559]
[1761940983652,0.5445,3885.6,3885.5,0.4251]
[1761940983856,0.62501926,3885.6,3885.5,0.4251]
[1761940984953,0.08051926,3885.6,3885.5,1.081]
[1761940988654,0.08051926,3885.6,3885.5,1.09959788]
[1761940989549,3.2078,3886.2,3886.1,0.6559]
[1761940989952,3.20971871,3886.6,3886.5,1.081]
[1761940990158,0.00191871,3886.6,3886.5,1.11634752]
[1761940990857,4.59164997,3887.6,3887.5,0.3511]
[1761940991061,3.6286,3887.6,3887.5,0.3511]
[1761940991249,3.6286,3887.6,3887.5,0.03534752]
[1761940991452,3.83058107,3887.6,3887.5,0.03534752]
[1761940991651,3.83058107,3887.6,3887.5,0.03710921]
[1761940991854,3.83058107,3887.6,3886.5,0.4251]
[1761940991855,3.8334585,3887.6,3886.5,0.4251]
[1761940992153,3.2078,3887.1,3887.0,0.9463]
[1761940992557,3.2078,3887.5,3887.0,0.9463]
[1761940993351,3.2078,3887.1,3887.0,0.9463]